bitfinex/quotes_ETHUSD_20250725
["timestamp","ask_amount","ask_price","bid_price","bid_amount"]
[1753432322176,0.7809,3664.2,3663.9,2.72927667]
[1753432322405,0.1368,3664.1,3663.8,2.72940221]
[1753432322609,5.1199,3664.2,3663.9,0.4972]
[1753432322907,5.1199,3664.2,3663.8,2.86620496]
[1753432323212,5.1199,3664.2,3663.6,3.227748]
[1753432323376,0.4355,3664.1,3663.7,2.72947934]
[1753432323805,0.1368,3664.3,3663.8,0.60951087]
[1753432324004,4.34,3664.3,3663.9,3.36333213]
[1753432324212,4.34,3664.3,3664.2,2.72910867]
[1753432324981,0.0092533,3664.4,3664.3,2.72903419]
[1753432325184,0.0092533,3664.4,3664.3,3.22623419]
[1753432325378,0.0092533,3664.4,3664.3,3.88752848]
[1753432325688,0.0092533,3664.4,3664.3,3.39032848]
[1753432325878,0.0092533,3664.4,3664.3,2.72903419]
[1753432327283,0.0092533,3664.4,3664.2,2.86589558]
[1753432327601,2.72883965,3664.6,3664.2,0.1368]
[1753432327917,1.0386,3664.5,3663.9,2.86607085]
[1753432328312,0.8292,3664.4,3663.9,0.1368]
[1753432328693,0.8292,3664.4,3663.6,0.551]
[1753432328694,3.76764791,3664.3,3663.7,0.1368]
[1753432328889,0.4355,3664.2,3663.7,0.1368]
[1753432329089,0.1368,3664.3,3663.7,0.1368]
[1753432329291,0.1368,3664.3,3663.8,0.55]
[1753432329493,3.0,3664.9,3664.1,2.72913198]
[1753432329494,0.1368,3664.5,3664.1,2.72913198]
[1753432329991,0.1368,3664.5,3664.2,2.72910162]
[1753432330183,4.339,3664.7,3664.2,0.5208]
[1753432330387,0.1368,3664.8,3664.4,2.72894609]
[1753432330587,0.1368,3664.8,3664.5,2.72886846]
[1753432331143,0.1368,3664.8,3664.6,2.7287945]
[1753432331436,4.339,3664.8,3664.6,2.86556573]
[1753432331634,4.339,3664.8,3664.7,2.72873632]
[1753432331853,1.2242244,3665.0,3664.6,0.1368]
[1753432331991,1.2242244,3665.0,3664.9,2.72858741]
[1753432332191,1.6597244,3665.0,3664.3,2.72903048]
[1753432332387,0.7994,3664.8,3664.2,2.72909771]
[1753432332620,0.1368,3664.6,3664.1,0.1368]
[1753432332790,0.1368,3664.6,3664.1,2.86592725]
[1753432333122,3.63071188,3664.5,3664.1,0.1368]
[1753432333290,1.0386,3664.4,3663.9,0.1368]
[1753432333491,2.72908827,3664.3,3663.6,0.001]
[1753432333697,0.1368,3664.2,3663.7,0.1368]
[1753432333894,4.339,3664.3,3663.9,2.72927634]
[1753432334093,0.0092591,3664.2,3663.9,3.22647634]
[1753432334405,0.0092591,3664.2,3663.7,0.1368]
[1753432334734,0.0092591,3664.2,3663.9,2.72928377]
[1753432334934,0.0092591,3664.2,3663.9,2.72931498]
[1753432335103,0.0092591,3664.2,3664.0,0.4972]
[1753432335616,0.0092591,3664.2,3664.1,0.4972]
[1753432335813,0.0092591,3664.2,3664.1,3.22638315]
[1753432336201,0.0092591,3664.2,3664.1,3.36318315]
[1753432336621,1.2242244,3665.0,3664.8,2.72864998]
[1753432336830,1.2242244,3665.0,3664.9,3.19468741]
[1753432337019,1.2242244,3665.0,3664.9,3.33148741]
[1753432337826,1.2242244,3665.0,3664.9,2.86538741]
[1753432338027,1.2242244,3665.0,3664.9,3.33148741]
[1753432338430,1.2242244,3665.0,3664.9,2.86538741]
[1753432340820,1.2242244,3665.0,3664.9,0.1368]
[1753432341342,1.2242244,3665.0,3664.9,2.86538741]
[1753432341659,1.2242244,3665.0,3664.9,3.88148741]
[1753432341829,1.2242244,3665.0,3664.9,5.23648462]
[1753432342036,1.2242244,3665.0,3664.9,5.20919875]
[1753432342558,1.2242244,3665.0,3664.9,8.83259875]
[1753432343260,1.2242244,3665.0,3664.9,9.29869875]
[1753432343457,1.2242244,3665.0,3664.9,4.96169875]
[1753432343962,1.2242244,3665.0,3664.9,4.41169875]
[1753432344462,1.2242244,3665.0,3664.9,3.33148741]
[1753432346531,1.2242244,3665.0,3664.9,0.1368]
[1753432346751,1.2242244,3665.0,3664.9,2.86538741]
[1753432347033,1.2242244,3665.0,3664.9,3.33148741]
[1753432347760,1.2242244,3665.0,3664.9,3.88148741]
[1753432347952,1.2242244,3665.0,3664.9,5.27568924]
[1753432348735,1.2242244,3665.0,3664.9,5.02818924]
[1753432349966,1.2242244,3665.0,3664.9,2.86538741]
[1753432350171,1.2242244,3665.0,3664.9,0.1368]
[1753432350471,1.6986244,3665.0,3664.9,0.1368]
[1753432351980,2.1642244,3665.0,3664.4,0.4661]
[1753432352140,2.1642244,3665.0,3664.7,0.1368]
[1753432352478,0.4744,3664.9,3664.7,0.1368]
[1753432352838,0.4744,3664.8,3664.7,0.1368]
[1753432353039,1.2242244,3665.0,3664.7,0.1368]
[1753432353473,0.4744,3664.9,3664.7,0.1368]
[1753432354370,0.4744,3664.9,3664.6,0.1368]
[1753432354682,0.4744,3664.9,3664.1,0.001]
[1753432354683,0.53586656,3664.9,3664.1,0.001]
[1753432354840,0.1368,3664.7,3664.2,0.6029]
[1753432355039,4.334,3664.6,3664.3,2.72903419]
[1753432355279,4.334,3664.6,3664.4,0.4661]
[1753432355483,4.334,3664.6,3664.1,0.001]
[1753432355693,0.4744,3664.5,3664.3,0.1368]
[1753432356191,4.334,3664.4,3664.3,0.1368]
[1753432356352,0.1368,3664.8,3664.3,0.1368]
[1753432356556,4.334,3664.7,3664.5,2.72883115]
[1753432357393,4.334,3664.7,3664.4,2.72894356]
[1753432357594,4.8084,3664.7,3664.4,2.72894356]
[1753432357794,4.334,3664.7,3664.3,0.1368]
[1753432357984,0.4744,3664.6,3664.3,0.1368]
[1753432358190,0.4744,3664.5,3664.3,0.1368]
[1753432358376,4.334,3664.4,3664.3,0.1368]
[1753432359669,5.274,3664.4,3664.1,0.001]
[1753432359867,0.94,3664.3,3664.1,0.001]
[1753432360303,0.4744,3664.2,3664.1,0.001]
[1753432360499,0.94,3664.2,3664.1,0.001]
[1753432360701,4.333,3664.2,3664.1,0.001]
[1753432361674,4.8074,3664.2,3664.1,0.001]
[1753432361873,4.333,3664.2,3664.1,0.001]
[1753432362102,4.333,3664.2,3664.1,2.73018315]
[1753432362408,4.333,3664.2,3664.1,0.001]
[1753432362620,4.8074,3664.2,3664.1,0.001]
[1753432363495,5.273,3664.2,3664.1,0.001]
[1753432364693,5.4098,3664.2,3664.1,0.001]
[1753432365023,9.03603904,3664.2,3664.1,0.001]
[1753432365324,9.04529664,3664.2,3664.1,0.001]
[1753432365823,6.31618797,3664.2,3664.1,0.001]
[1753432366029,5.4190576,3664.2,3664.1,0.001]
[1753432366189,4.3412576,3664.2,3664.1,0.001]
[1753432367391,4.7906576,3664.2,3664.1,0.001]
[1753432367900,5.2460576,3664.2,3664.1,0.001]
[1753432368308,7.97516627,3664.2,3664.1,0.001]
[1753432368629,8.11196627,3664.2,3664.1,0.001]
[1753432369531,8.93236627,3664.2,3664.1,0.001]
[1753432369721,8.92310867,3664.2,3664.1,0.001]
[1753432369920,4.60036777,3664.2,3664.1,0.001]
[1753432370234,5.1606591,3664.2,3664.1,0.001]
[1753432370398,4.3402591,3664.2,3664.1,0.001]
[1753432370604,4.7804,3664.2,3664.1,0.001]
[1753432370808,3.17850867,3664.2,3664.1,0.001]
[1753432371009,3.63390867,3664.2,3664.1,0.001]
[1753432371246,7.96490867,3664.2,3664.1,0.001]
[1753432371420,3.63390867,3664.2,3664.1,0.001]
[1753432371741,7.96490867,3664.2,3664.1,0.001]
[1753432373545,3.63390867,3664.2,3664.1,0.001]
[1753432373746,7.96490867,3664.2,3664.1,0.001]
[1753432374440,8.78210867,3664.2,3664.1,0.001]
[1753432374809,11.78210867,3664.2,3664.1,0.001]
[1753432375413,11.79136857,3664.2,3664.1,1e-08]
[1753432378822,3.8038,3663.8,3663.5,0.001]
[1753432379021,6.67015562,3663.6,3663.5,0.001]
[1753432379560,7.58421552,3663.6,3663.5,0.001]
[1753432379723,2.72970464,3663.4,3663.3,0.001]
[1753432380057,8.00030464,3663.4,3663.3,0.001]
[1753432380251,8.90510464,3663.4,3663.3,0.001]
[1753432380553,8.91436454,3663.4,3663.3,1e-08]
[1753432380731,11.91436454,3663.4,3663.3,1e-08]
[1753432381564,3.50875179,3662.8,3662.7,1e-08]
[1753432381728,10.83875179,3662.8,3662.7,1e-08]
[1753432381918,10.97555179,3662.8,3662.7,1e-08]
[1753432382254,11.88961169,3662.8,3662.7,1e-08]
[1753432383452,12.0385789,3662.8,3662.7,1e-08]
[1753432383655,7.7085789,3662.8,3662.7,1e-08]
[1753432383852,12.0385789,3662.8,3662.7,1e-08]
[1753432384034,7.7085789,3662.8,3662.7,1e-08]
[1753432384234,12.0385789,3662.8,3662.7,1e-08]
[1753432384731,12.0385789,3662.8,3662.7,3.74372634]
[1753432384732,0.0092599,3662.8,3662.7,3.74372634]
[1753432385049,1.2533,3664.6,3663.6,2.72954503]
[1753432385254,4.33,3664.5,3664.0,2.7291904]
[1753432385452,0.8039,3664.9,3664.1,0.4927]
[1753432385620,0.8039,3664.9,3663.8,0.5208]
[1753432385621,2.72903469,3664.3,3663.8,0.5208]
[1753432385820,4.33,3664.2,3663.8,0.5208]
[1753432386040,4.33,3664.2,3663.8,1.0135]
[1753432386261,7.05912334,3664.2,3663.8,0.4927]
[1753432386423,4.33,3664.2,3663.8,0.4927]
[1753432386624,1.37429756,3665.0,3664.3,0.5208]
[1753432386625,1.2242244,3665.0,3664.3,0.5208]
[1753432386823,4.33,3664.6,3664.3,0.5208]
[1753432387022,4.33,3664.6,3664.4,0.4927]
[1753432387342,4.33,3664.6,3664.1,0.4927]
[1753432387656,4.33,3664.6,3663.7,1.0135]
[1753432387657,0.4494,3664.5,3663.7,1.0135]
[1753432387851,3.17828759,3664.5,3663.7,1.0135]
[1753432388080,2.72923887,3664.1,3663.4,1.0135]
[1753432388372,4.33,3664.0,3663.5,0.4927]
[1753432388522,0.8227,3664.4,3663.5,0.4927]
[1753432388859,0.002,3664.7,3663.5,0.4927]
[1753432388860,4.33,3664.3,3664.2,2.72909427]
[1753432389028,4.329,3664.3,3664.2,1.0135]
[1753432389358,4.329,3664.3,3663.9,2.72931808]
[1753432389518,4.329,3664.3,3664.0,0.4927]
[1753432389722,4.329,3664.3,3664.1,2.72913181]
[1753432389921,4.329,3664.3,3664.2,0.4927]
[1753432391135,4.329,3664.3,3663.7,0.5208]
[1753432391336,4.7784,3664.3,3663.7,0.5208]
[1753432391540,7.50744339,3664.3,3663.7,0.5208]
[1753432391853,2.72910867,3664.2,3663.7,0.5208]
[1753432392045,3.17857031,3664.2,3663.7,1.0135]
[1753432392245,2.7291997,3664.1,3663.7,1.0135]
[1753432392442,4.328,3664.0,3663.7,1.0135]
[1753432392962,4.328,3664.0,3663.8,0.4927]
[1753432393183,4.328,3664.0,3663.7,0.5208]
[1753432393561,4.328,3664.0,3663.5,0.4927]
[1753432393761,4.328,3664.0,3663.6,0.4927]
[1753432394658,7.05727408,3664.0,3663.6,0.4927]
[1753432394860,4.328,3664.0,3663.6,0.4927]
[1753432395378,4.7774,3664.0,3663.6,0.4927]
[1753432395543,4.328,3664.0,3663.7,0.4927]
[1753432395865,4.328,3663.9,3663.8,0.4927]
[1753432397370,4.327,3663.9,3663.8,0.4927]
[1753432398068,4.327,3663.9,3663.7,2.8662712]
[1753432398275,4.327,3663.9,3663.7,0.1368]
[1753432398692,1.62893062,3663.8,3663.1,0.5208]
[1753432398831,0.1368,3663.6,3663.1,0.6576]
[1753432399034,4.327,3663.5,3663.1,0.6576]
[1753432399483,4.327,3663.5,3663.1,0.1368]
[1753432399638,0.608,3663.4,3663.0,0.001]
[1753432399836,3.33771174,3663.4,3663.0,0.001]
[1753432400240,2.72990113,3663.2,3663.0,0.001]
[1753432400559,4.327,3663.1,3663.0,0.001]
[1753432401855,7.0569282,3663.1,3663.0,0.001]
[1753432402049,7.5281282,3663.1,3663.0,0.001]
[1753432402266,8.7923282,3663.1,3663.0,0.001]
[1753432402664,11.7923282,3663.1,3663.0,0.001]
[1753432404947,7.0132282,3663.1,3663.0,0.001]
[1753432405147,0.1460595,3663.2,3663.0,0.001]
[1753432405352,4.327,3663.1,3663.0,0.001]
[1753432405545,7.0569282,3663.1,3663.0,0.001]
[1753432405971,7.9802282,3663.1,3663.0,0.001]
[1753432406286,8.7926282,3663.1,3663.0,0.001]
[1753432407252,11.7926282,3663.1,3663.0,0.001]
[1753432407891,11.7926282,3663.1,3663.0,1e-08]
[1753432408094,7.4656282,3663.1,3663.0,1e-08]
[1753432408389,12.82577752,3663.1,3663.0,1e-08]
[1753432408587,8.04767752,3663.1,3663.0,1e-08]
[1753432408792,8.49977752,3663.1,3663.0,1e-08]
[1753432408950,12.82577752,3663.1,3663.0,1e-08]
[1753432409352,12.83504142,3663.1,3663.0,1e-08]
[1753432411258,12.63504142,3663.1,3663.0,1e-08]
[1753432413167,12.63504192,3663.1,3663.0,1e-08]
[1753432416665,8.30904192,3663.1,3663.0,1e-08]
[1753432416964,6.8227926,3663.1,3663.0,1e-08]
[1753432417186,6.3515926,3663.1,3663.0,1e-08]
[1753432417390,11.5916282,3663.1,3663.0,1e-08]
[1753432418216,11.6008924,3663.1,3663.0,1e-08]
[1753432420303,2.73052453,3662.3,3662.2,0.001]
[1753432420470,10.86832453,3662.3,3662.2,0.001]
[1753432420669,11.92842453,3662.3,3662.2,0.001]
[1753432421598,11.47632453,3662.3,3662.2,0.001]
[1753432422186,11.79162453,3662.3,3662.2,1e-08]
[1753432422588,11.80088813,3662.3,3662.2,1e-08]
[1753432422792,11.94371622,3662.3,3662.2,1e-08]
[1753432423971,2.73097195,3661.7,3661.6,0.001]
[1753432424172,5.73127031,3661.3,3660.2,0.7189]
[1753432424413,5.73127031,3661.3,3660.6,0.4694]
[1753432424604,10.05627031,3661.3,3660.6,0.4694]
[1753432424792,10.52747031,3661.3,3660.6,0.4694]
[1753432424993,10.97957031,3661.3,3660.2,0.2495]
[1753432425203,10.97957031,3661.3,3660.2,0.7189]
[1753432425510,11.77237031,3661.3,3660.2,0.2495]
[1753432425809,2.7320165,3660.3,3660.2,0.2495]
[1753432426112,2.7320165,3660.3,3659.2,0.5208]
[1753432426113,0.7663,3660.2,3659.2,0.5208]
[1753432426299,3.0,3660.0,3659.2,0.5208]
[1753432426495,2.73254354,3659.6,3659.2,0.5208]
[1753432426701,4.325,3659.5,3659.3,0.4694]
[1753432426873,4.325,3659.4,3658.1,0.93000342]
[1753432427070,2.73304926,3659.0,3658.2,2.73353951]
[1753432427271,4.325,3658.9,3658.2,2.73353951]
[1753432427472,7.05807778,3658.9,3658.2,2.73353951]
[1753432427684,2.73285644,3659.2,3657.9,9.43730342]
[1753432427908,0.27309719,3659.4,3657.9,9.43730342]
[1753432427909,0.30059536,3659.1,3657.9,11.03663376]
[1753432428211,4.326,3659.0,3658.1,2.73365073]
[1753432428413,4.326,3659.0,3656.9,2.73455659]
[1753432428414,0.7954,3658.7,3656.9,2.73455659]
[1753432428582,0.7954,3658.7,3657.5,2.7340509]
[1753432428583,7.05928595,3658.6,3657.5,2.7340509]
[1753432428778,2.73389106,3657.8,3657.0,3.03726108]
[1753432428975,4.326,3657.8,3657.1,0.4749]
[1753432429180,4.326,3657.8,3657.5,2.73410799]
[1753432429381,4.326,3657.8,3657.6,0.4749]
[1753432429810,4.326,3657.8,3657.7,0.4749]
[1753432430511,4.326,3657.8,3657.3,2.73424752]
[1753432430809,0.4868,3658.9,3657.9,2.73376512]
[1753432430986,4.326,3658.8,3658.0,0.4749]
[1753432431185,4.326,3658.7,3658.0,3.20860351]
[1753432431584,2.73319166,3658.8,3658.0,3.20860351]
[1753432431787,2.73343746,3658.4,3657.6,2.73402661]
[1753432431988,2.73343746,3658.4,3657.2,1.0249]
[1753432431989,4.326,3658.3,3657.1,3.0]
[1753432432189,0.0092738,3658.3,3658.2,2.73358482]
[1753432432498,4.4628,3659.0,3658.3,2.73343851]
[1753432432702,0.0092738,3658.7,3658.5,2.73334887]
[1753432433014,0.0092738,3658.7,3658.6,3.20818595]
[1753432434014,0.0092738,3658.7,3658.6,0.4749]
[1753432434525,0.0092738,3658.7,3658.6,3.20818595]
[1753432435023,0.0092738,3658.7,3658.6,3.84336739]
[1753432435204,0.0092738,3658.7,3658.6,4.39336739]
[1753432435728,4.326,3659.6,3659.5,2.73261374]
[1753432435922,0.1368,3659.8,3659.6,2.73247711]
[1753432436124,4.326,3660.0,3659.3,0.6117]
[1753432436287,4.4628,3660.0,3659.5,0.1368]
[1753432436488,4.4628,3660.0,3659.5,0.6117]
[1753432436692,4.4628,3660.0,3659.5,3.34429441]
[1753432436892,0.0092739,3659.9,3659.5,0.6117]
[1753432437110,3.0092739,3659.9,3659.5,0.1368]
[1753432437308,0.1368,3659.6,3659.1,0.1368]
[1753432437622,0.942,3659.5,3658.2,3.20847814]
[1753432437806,0.1368,3659.1,3658.6,0.1368]
[1753432438132,2.86972298,3659.1,3658.6,0.1368]
[1753432438307,0.1368,3659.1,3658.6,2.87002964]
[1753432438504,0.0092739,3659.0,3658.7,0.4749]
[1753432438702,0.0092739,3659.0,3658.8,3.20801733]
[1753432439007,0.0092739,3659.0,3658.8,0.4749]
[1753432439618,0.0092739,3659.0,3658.6,0.1368]
[1753432440225,0.1460739,3659.0,3658.5,0.1368]
[1753432440436,2.87911566,3659.0,3658.5,0.1368]
[1753432440752,0.1460739,3659.0,3658.6,2.73328595]
[1753432440935,0.0092739,3659.0,3658.7,1.0249]
[1753432441227,4.326,3659.2,3659.1,2.73291246]
[1753432441436,4.326,3659.9,3659.4,0.55]
[1753432441746,4.326,3659.9,3658.9,0.1368]
[1753432441747,3.0,3659.3,3657.8,0.4749]
[1753432441892,1.6935,3659.2,3658.3,0.1368]
[1753432442113,1.6935,3659.2,3657.8,0.4749]
[1753432442114,3.0,3659.0,3657.8,0.4749]
[1753432442466,0.1368,3658.4,3657.9,0.1368]
[1753432442633,4.326,3658.3,3657.9,0.1368]
[1753432442963,7.05952887,3658.3,3657.6,2.73401452]
[1753432443112,0.7611707,3658.2,3656.8,0.4749]
[1753432443312,0.7611707,3658.2,3657.4,0.1368]
[1753432443313,0.1368,3657.9,3657.4,0.1368]
[1753432443546,0.0092707,3658.2,3657.7,0.1368]
[1753432443718,0.0092707,3658.2,3657.8,2.73388169]
[1753432443926,2.73261374,3659.5,3657.8,1.06544443]
[1753432444222,0.1368,3659.2,3658.2,0.55]
[1753432444559,2.73307083,3658.9,3658.7,0.1368]
[1753432444848,4.326,3658.8,3658.7,0.1368]
[1753432445226,4.326,3658.8,3657.8,2.73483337]
[1753432445429,0.1368,3658.5,3658.0,0.1368]
[1753432445749,2.73365736,3658.2,3657.8,0.001]
[1753432445950,7.0597224,3658.1,3657.9,0.1368]
[1753432446447,4.3352749,3658.1,3657.9,0.1368]
[1753432447014,0.0092749,3658.1,3657.9,0.1368]
[1753432447225,4.3352749,3658.1,3658.0,3.23597162]
[1753432447419,0.0092749,3658.1,3658.0,3.75863428]
[1753432447625,0.0092749,3658.1,3658.0,4.36939943]
[1753432447848,4.326,3658.3,3658.2,2.73358482]
[1753432448048,4.326,3658.3,3658.0,4.3693277]
[1753432448249,4.326,3658.3,3658.2,0.1368]
[1753432449368,5.2138,3658.3,3657.8,0.551]
[1753432449613,0.4552,3658.2,3657.8,0.001]
[1753432449904,2.73380901,3657.9,3657.8,0.001]
[1753432450256,3.67580901,3657.9,3657.8,0.001]
[1753432450490,3.68508261,3657.9,3657.8,0.001]
[1753432450666,4.340642,3657.9,3657.8,0.001]
[1753432450979,8.171042,3657.9,3657.8,1e-08]
[1753432451295,6.56503137,3656.8,3655.4,0.4749]
[1753432451510,11.18806141,3656.8,3655.8,2.7353623]
[1753432451795,1.2136,3657.2,3656.1,0.4749]
[1753432452102,0.20152534,3658.7,3657.2,3.0]
[1753432452314,0.20152534,3658.7,3658.2,2.73357329]
[1753432452453,0.20152534,3658.7,3658.0,0.55]
[1753432452791,2.73323016,3658.7,3658.0,0.55]
[1753432453155,0.4572,3658.8,3657.7,0.55]
[1753432453358,0.4572,3658.8,3657.7,0.02733958]
[1753432453687,4.8032,3658.8,3657.4,0.4749]
[1753432453990,4.8032,3658.8,3657.5,0.57734107]
[1753432453991,2.7332414,3658.7,3657.5,0.57734107]
[1753432454188,2.73334087,3658.6,3657.6,2.7339752]
[1753432454393,7.53634646,3658.8,3657.6,2.7339752]
[1753432454394,4.8032,3658.8,3657.7,0.02733958]
[1753432454595,4.8032,3658.8,3657.9,2.73373931]
[1753432454773,7.53639648,3658.8,3658.0,2.73367995]
[1753432454972,2.7332169,3658.7,3658.0,2.73367995]
[1753432455194,4.346,3658.7,3658.3,2.73350234]
[1753432455398,4.346,3658.7,3658.3,0.7481602]
[1753432455695,4.346,3658.7,3658.4,2.73341621]
[1753432455997,4.346,3658.7,3657.6,2.73396165]
[1753432455998,4.346,3658.7,3657.9,0.4749]
[1753432456295,5.5973,3658.7,3657.7,2.73389571]
[1753432456495,9.21245232,3658.7,3657.4,0.4749]
[1753432456700,0.002,3658.8,3657.5,0.57734107]
[1753432456881,0.002,3658.8,3658.3,2.7335101]
[1753432457061,0.002,3658.8,3657.7,0.55]
[1753432457265,0.002,3658.8,3658.0,0.55]
[1753432457465,0.002,3658.8,3658.3,2.73350899]
[1753432457659,0.002,3658.8,3658.2,2.73353557]
[1753432457894,0.002,3658.8,3658.0,0.4795]
[1753432458098,0.002,3658.8,3658.3,2.7335101]
[1753432458259,0.002,3658.8,3658.4,2.73343025]
[1753432458466,0.002,3658.8,3658.6,2.73328425]
[1753432458663,0.002,3658.8,3658.7,3.28321124]
[1753432459087,0.002,3658.8,3658.7,3.76271124]
[1753432459285,0.002,3658.8,3657.8,1.0295]
[1753432459490,0.002,3658.8,3657.9,0.55]
[1753432459676,0.473,3658.7,3658.1,2.73360489]
[1753432459875,0.002,3658.8,3658.2,2.73352212]
[1753432460101,0.002,3658.8,3657.9,3.28377232]
[1753432460268,2.73326972,3658.7,3657.9,3.28375075]
[1753432460468,2.73323364,3658.7,3657.9,3.28378542]
[1753432460663,2.73330184,3658.6,3657.9,3.28378542]
[1753432461068,0.475,3658.8,3657.4,0.4795]
[1753432461069,3.20815864,3658.8,3657.8,3.28384939]
[1753432461281,0.1368,3658.7,3658.1,0.1368]
[1753432462096,2.87001653,3658.7,3658.1,0.1368]
[1753432462301,2.87003518,3658.7,3658.1,0.1368]
[1753432462800,0.1368,3658.7,3658.1,2.8704546]
[1753432463000,0.1368,3658.7,3658.1,2.87044073]
[1753432463206,2.87002067,3658.7,3658.1,0.1368]
[1753432463967,2.73328595,3658.6,3658.1,0.1368]
[1753432464173,2.73337203,3658.5,3657.8,2.73382522]
[1753432464411,0.1368,3658.3,3657.8,2.87062522]
[1753432464817,0.1368,3658.3,3657.8,0.1368]
[1753432464983,0.473,3658.6,3657.8,0.1368]
[1753432465326,0.7772,3658.5,3657.8,0.1368]
[1753432465631,0.1368,3658.3,3657.8,2.87067742]
[1753432465852,0.1368,3658.3,3657.8,0.1368]
[1753432466124,0.6098,3658.3,3657.7,0.1368]
[1753432466288,0.6098,3658.3,3657.8,2.73382681]
[1753432466628,0.473,3658.2,3657.7,2.87070845]
[1753432466916,0.473,3658.1,3657.7,2.87070845]
[1753432467120,0.473,3658.1,3657.8,2.73387069]
[1753432467616,0.1368,3658.3,3658.0,2.73367264]
[1753432467990,0.1368,3658.3,3657.8,2.73387347]
[1753432468422,0.473,3658.2,3657.7,2.87074791]
[1753432468631,0.473,3658.2,3657.8,2.73388096]
[1753432468776,0.473,3658.2,3657.7,2.87074062]
[1753432468976,0.473,3658.2,3657.8,2.73387813]
[1753432469273,0.473,3658.2,3657.9,2.73379355]
[1753432469598,0.473,3658.2,3657.7,0.1368]
[1753432469799,0.1368,3658.3,3657.9,2.73375298]
[1753432470171,0.1368,3658.3,3657.7,0.1368]
[1753432470374,0.1368,3658.3,3658.0,2.73371861]
[1753432470576,2.73336775,3658.5,3657.8,2.73382832]
[1753432470777,0.1368,3658.4,3658.1,2.73364728]
[1753432471072,0.1368,3658.4,3657.9,0.1368]
[1753432471700,0.002,3658.8,3657.9,0.1368]
[1753432471701,4.4698,3658.5,3658.2,2.73352348]
[1753432471978,4.4698,3658.5,3658.1,2.73363636]
[1753432472301,4.4698,3658.5,3657.9,0.1368]
[1753432473512,0.002,3658.8,3658.7,2.73321124]
[1753432473714,0.475,3658.8,3658.1,0.82657912]
[1753432473892,0.475,3658.8,3658.3,2.73346225]
[1753432474210,0.475,3658.8,3658.5,2.73331029]
[1753432474596,0.002,3658.8,3658.7,2.73321124]
[1753432474790,0.002,3658.8,3658.7,3.82986223]
[1753432475111,0.002,3658.8,3658.7,4.33669434]
[1753432475513,0.002,3658.8,3658.7,7.33669434]
[1753432475719,0.002,3658.8,3658.7,7.30936223]
[1753432476218,1e-08,3658.8,3658.7,7.30936223]
[1753432476401,0.002,3659.6,3659.5,3.28261374]
[1753432476581,0.002,3659.6,3659.5,3.88414563]
[1753432476779,0.002,3659.6,3659.5,4.36364563]
[1753432477316,0.002,3659.6,3659.5,3.88414563]
[1753432477517,0.475,3659.6,3658.8,0.55]
[1753432477815,0.002,3659.6,3658.9,4.331]
[1753432478119,0.475,3659.6,3659.0,2.73298662]
[1753432478314,0.84342327,3659.6,3659.0,2.73298662]
[1753432478613,0.475,3659.6,3659.1,2.73290332]
[1753432478815,0.475,3659.6,3658.9,0.55]
[1753432479315,0.475,3659.6,3658.4,2.73339731]
[1753432479516,0.7604,3659.3,3658.7,2.73320687]
[1753432479715,3.49316493,3659.3,3658.7,2.73320687]
[1753432479895,3.96616493,3659.3,3658.6,2.73326433]
[1753432480933,1.2334,3659.3,3658.7,2.73320396]
[1753432481298,1.2334,3659.3,3658.5,7.06334046]
[1753432481621,0.7604,3659.3,3658.5,7.06334046]
[1753432481820,0.473,3659.2,3658.5,4.33]
[1753432481987,2.73297288,3659.1,3658.5,4.33]
[1753432482186,2.73297288,3659.1,3658.4,2.73342821]
[1753432482399,3.20598925,3659.0,3658.4,2.73342821]
[1753432482700,0.473,3659.0,3658.7,2.86995896]
[1753432483021,0.1368,3659.2,3658.7,0.1368]
[1753432483193,0.9141,3659.6,3658.9,0.1368]
[1753432483522,0.002,3659.6,3659.4,2.73268484]
[1753432483708,0.002,3659.6,3659.5,2.73261374]
[1753432484699,0.002,3659.6,3659.3,2.8695571]
[1753432484900,0.473,3659.5,3659.3,0.1368]
[1753432485101,0.473,3659.5,3657.7,2.73390772]
[1753432485102,0.473,3659.4,3658.5,2.73331952]
[1753432485304,0.473,3659.4,3659.1,0.1368]
[1753432485506,0.473,3659.4,3659.2,2.73279859]
[1753432485701,0.1388,3659.6,3659.3,2.73269132]
[1753432486102,0.1388,3659.6,3659.1,2.86963818]
[1753432486308,0.6118,3659.6,3659.1,0.1368]
[1753432486494,0.473,3659.5,3659.1,0.1368]
[1753432486694,0.002,3659.6,3659.3,2.73276309]
[1753432486895,0.002,3659.6,3659.3,2.86956309]
[1753432487236,0.002,3659.6,3659.5,2.73261374]
[1753432487608,0.002,3659.6,3659.5,2.86941374]
[1753432487937,0.002,3659.6,3659.5,0.1368]
[1753432488134,0.7701,3659.6,3659.5,0.1368]
[1753432488334,1.2075,3659.6,3659.5,0.1368]
[1753432488537,1.2075,3659.6,3659.0,0.55]
[1753432488739,1.2075,3659.6,3659.3,0.1368]
[1753432488940,1.2075,3659.6,3659.3,2.86955238]
[1753432489731,1.2075,3659.6,3659.4,2.73268627]
[1753432490139,1.2075,3659.6,3659.3,2.86954867]
[1753432490509,0.4394,3659.6,3659.3,0.1368]
[1753432490711,0.4394,3659.6,3659.3,2.86950439]
[1753432491648,0.4394,3659.6,3659.3,0.1368]
[1753432493138,0.4394,3659.6,3659.3,2.86951022]
[1753432493460,0.002,3659.6,3659.3,0.1368]
[1753432494150,0.4394,3659.6,3659.3,0.1368]
[1753432494349,0.002,3659.6,3659.3,0.1368]
[1753432494722,0.4394,3659.6,3659.3,0.1368]
[1753432494926,0.002,3659.6,3659.5,3.28261374]
[1753432495125,0.002,3659.6,3659.5,3.87891374]
[1753432495832,0.002,3659.6,3659.5,3.90623987]